fUSD/lending_fUSD_20250521
["ID","MTS","AMOUNT","RATE_DAILY","PERIOD"]
[361842185,1747829389532,-305.31,0.00033876,2]
[361842186,1747829389563,-305.11,0.00033876,2]
[361842187,1747829389592,-208.5737353,0.000339,29]
[361842188,1747829389621,-307.31,0.00033972,5]
[361842189,1747829389647,-420.0,0.00033972,5]
[361842190,1747829389674,-420.0,0.00033972,5]
[361842191,1747829389705,-804.63,0.00033972,5]
[361842192,1747829389734,-420.0,0.00033972,5]
[361842193,1747829389764,-420.0,0.00033972,5]
[361842194,1747829389791,-886.1739,0.0003403,30]
[361842195,1747829389820,-420.0,0.00034246,5]
[361842196,1747829389847,-420.0,0.00034246,5]
[361842197,1747829389874,-804.63,0.00034246,5]
[361842198,1747829389902,-420.0,0.00034246,5]
[361842199,1747829389931,-420.0,0.00034246,5]
[361842200,1747829389958,-420.0,0.0003452,5]
[361842201,1747829389984,-420.0,0.0003452,5]
[361842202,1747829390011,-804.63,0.0003452,5]
[361842203,1747829390038,-420.0,0.0003452,5]
[361842204,1747829390066,-420.0,0.0003452,5]
[361842205,1747829390091,-1210.73,0.00034621,39]
[361842206,1747829390118,-483.27,0.00034734,2]
[361842207,1747829390142,-420.0,0.00034794,5]
[361842208,1747829390167,-420.0,0.00034794,5]
[361842210,1747829390195,-804.63,0.00034794,5]
[361842211,1747829390222,-420.0,0.00034794,5]
[361842212,1747829390252,-420.0,0.00034794,5]
[361842213,1747829390279,-420.0,0.00035068,5]
[361842214,1747829390305,-420.0,0.00035068,5]
[361842215,1747829390331,-804.63,0.00035068,5]
[361842216,1747829390359,-307.54486854,0.00035068,5]
[361842217,1747829390388,-420.0,0.00035068,5]
[361842218,1747829390415,-1228.31,0.00035089,5]
[361842219,1747829390443,-500.0,0.0003527,60]
[361842220,1747829390470,-420.0,0.00035342,5]
[361842221,1747829390498,-420.0,0.00035342,5]
[361842222,1747829390525,-804.63,0.00035342,5]
[361842223,1747829390555,-420.0,0.00035342,5]
[361842224,1747829390582,-1244.24,0.00035552,5]
[361842225,1747829390609,-420.0,0.00035616,5]
[361842226,1747829390637,-420.0,0.00035616,5]
[361842227,1747829390664,-804.63,0.00035616,5]
[361842228,1747829390691,-420.0,0.00035616,5]
[361842229,1747829390717,-1150.0,0.0003568,2]
[361842230,1747829390744,-420.0,0.0003589,5]
[361842231,1747829390769,-420.0,0.0003589,5]
[361842232,1747829390797,-804.63,0.0003589,5]
[361842233,1747829390827,-420.0,0.0003589,5]
[361842234,1747829390854,-6744.82,0.00036148,2]
[361842235,1747829390882,-1228.74,0.00036161,5]
[361842236,1747829390909,-420.0,0.00036164,5]
[361842237,1747829390935,-420.0,0.00036164,5]
[361842238,1747829390962,-804.63,0.00036164,5]
[361842239,1747829390989,-420.0,0.00036164,5]
[361842240,1747829391016,-250.0,0.00036204,2]
[361842241,1747829391043,-200.0,0.00036294,2]
[361842242,1747829391070,-420.0,0.00036438,5]
[361842243,1747829391096,-420.0,0.00036438,5]
[361842244,1747829391571,-804.63,0.00036438,5]
[361842245,1747829391599,-420.0,0.00036438,5]
[361842246,1747829391624,-176.25,0.00036581,120]
[361842247,1747829391649,-150.0,0.00036581,7]
[361842248,1747829391673,-420.0,0.00036712,5]
[361842249,1747829391697,-420.0,0.00036712,5]
[361842250,1747829391721,-804.63,0.00036712,5]
[361842251,1747829391748,-420.0,0.00036712,5]
[361842252,1747829391773,-858.42,0.00036761,2]
[361842253,1747829391798,-11546.69,0.00036793,2]
[361842254,1747829391822,-23900.0,0.00036812,2]
[361842255,1747829391848,-1247.59,0.00036912,5]
[361842256,1747829391871,-1108.89,0.00036978,2]
[361842257,1747829391896,-275.29,0.00036986,5]
[361842258,1747829391920,-420.0,0.00036986,5]
[361842259,1747829391947,-804.63,0.00036986,5]
[361842260,1747829391977,-152.51,0.00036986,5]
[361842261,1747829392004,-483.27,0.00036998,2]
[361842262,1747829392030,-420.0,0.0003726,5]
[361842263,1747829392054,-804.63,0.0003726,5]
[361842264,1747829392079,-420.0,0.00037534,5]
[361842265,1747829392104,-804.63,0.00037534,5]
[361842266,1747829392129,-878.7,0.00037639,2]
[361842267,1747829392154,-420.0,0.00037808,5]
[361842268,1747829392180,-804.63,0.00037808,5]
[361842269,1747829392207,-500.0,0.00038,60]
[361842270,1747829392232,-209.0,0.00038037,2]
[361842271,1747829392258,-420.0,0.00038082,5]
[361842272,1747829392287,-804.63,0.00038082,5]
[361842273,1747829392312,-500.0,0.000381,60]
[361842274,1747829392339,-1265.67,0.00038153,5]
[361842275,1747829392365,-500.0,0.000382,60]
[361842276,1747829392391,-420.0,0.00038356,5]
[361842277,1747829392418,-804.63,0.00038356,5]
[361842278,1747829392444,-168.08,0.00038356,4]
[361842279,1747829392473,-1259.71,0.00038362,5]
[361842280,1747829392501,-500.0,0.000385,60]
[361842281,1747829392527,-1253.7,0.00038552,5]
[361842282,1747829392552,-1754.0,0.000386,2]
[361842283,1747829392577,-420.0,0.0003863,5]
[361842284,1747829392602,-804.63,0.0003863,5]
[361842285,1747829392627,-500.0,0.00038635,2]
[361842286,1747829392655,-1148.0,0.0003868,2]
[361842287,1747829392681,-1269.58,0.00038696,5]
[361842288,1747829392706,-996.5,0.00038793,7]
[361842289,1747829392732,-420.0,0.00038904,5]
[361842290,1747829392760,-804.63,0.00038904,5]
[361842291,1747829392785,-150.0,0.00039,120]
[361842292,1747829392816,-619.9289386,0.00039,120]
[361842293,1747829392841,-1000.0,0.00039033,7]
[361842294,1747829392866,-1146.0,0.00039041,20]
[361842295,1747829392892,-398.29,0.00039178,5]
[361842296,1747829392917,-804.84,0.00039178,5]
[361842297,1747829392946,-208.5737353,0.00039233,40]
[361842298,1747829392971,-483.27,0.00039262,2]
[361842299,1747829392999,-1146.0,0.00039443,20]
[361842300,1747829393024,-1000.0,0.00039648,7]
[361842301,1747829393048,-1146.0,0.00039846,20]
[361842302,1747829393074,-5000.0,0.0004,30]
[361842303,1747829393098,-1000.0,0.00040022,7]
[361842304,1747829393123,-1146.0,0.00040248,20]
[361842305,1747829393147,-288.37303827,0.00040248,20]
[361842306,1747829393174,-1000.0,0.00040479,7]
[361842307,1747829393200,-500.0,0.0004055,60]
[361842308,1747829393224,-2630.69,0.00040636,120]
[361842309,1747829393249,-1146.0,0.00040651,20]
[361842310,1747829393273,-150.0,0.00040693,2]
[361842311,1747829393297,-4076.0,0.000407,117]
[361842312,1747829393333,-847.268662,0.00040739,4]
[361842313,1747829393363,-16000.0,0.00040766,2]
[361842314,1747829393388,-10000.0,0.00041,120]
[361842315,1747829393414,-430.0,0.00041,120]
[361842316,1747829393440,-1146.0,0.00041053,20]
[361842317,1747829393469,-150.35,0.00041096,2]
[361842318,1747829393496,-1260.95,0.00041138,5]
[361842319,1747829393523,-150.0,0.00041211,14]
[361842320,1747829393623,-1000.0,0.00041225,14]
[361842321,1747829393649,-1000.0,0.00041265,14]
[361842322,1747829393674,-150.0,0.00041297,14]
[361842323,1747829393700,-150.0,0.00041324,14]
[361842324,1747829393726,-1146.0,0.00041456,20]
[361842325,1747829393751,-150.0,0.00041456,2]
[361842326,1747829393775,-500.0,0.000415,120]
[361842328,1747829393806,-150.0,0.00041513,2]
[361842329,1747829393832,-483.27,0.00041526,2]
[361842330,1747829393856,-150.0,0.00041564,14]
[361842331,1747829393881,-150.0,0.00041577,2]
[361842332,1747829393907,-150.0,0.00041588,2]
[361842333,1747829393932,-150.0,0.00041734,2]
[361842334,1747829393956,-150.0,0.00041756,2]
[361842335,1747829393981,-150.0,0.00041812,2]
[361842336,1747829394010,-150.0,0.00041835,2]
[361842337,1747829394036,-150.0,0.00041856,14]
[361842338,1747829394061,-150.0,0.00041874,2]
[361842339,1747829394085,-150.0,0.00041878,14]
[361842340,1747829394112,-150.0,0.00041887,2]
[361842341,1747829394138,-5120.22856324,0.0004189,14]
[361842342,1747829394164,-2189.20199264,0.0004189,15]
[361842343,1747829394188,-216.72085167,0.0004189,28]
[361842344,1747829394214,-169.54223486,0.00041892,15]
[361842345,1747829394244,-150.0,0.00041892,2]
[361842346,1747829394271,-329.19201378,0.000419,18]
[361842347,1747829394297,-2189.20199258,0.00041915,15]
[361842348,1747829394327,-453.23,0.00041918,30]
[361842349,1747829394353,-150.0,0.00041918,30]
[361842350,1747829394379,-158.13,0.00041918,30]
[361842351,1747829394404,-162.8,0.00041918,30]
[361842352,1747829394430,-162.8,0.00041918,30]
[361842353,1747829394455,-179.07069024,0.00041924,5]
[361842354,1747829394484,-2189.20199258,0.00041941,15]
[361842355,1747829394511,-350.0,0.00041958,120]
[361842356,1747829394539,-150.0,0.00041966,2]
[361842357,1747829394565,-2189.20199258,0.00041966,15]
[361842358,1747829394592,-150.0,0.00041978,2]
[361842359,1747829394617,-25819.3334968,0.00041982,4]
[361842360,1747829394642,-5163.86669937,0.00041983,4]
[361842361,1747829394668,-25819.3334968,0.00041986,4]
[361842362,1747829394694,-5163.86669937,0.00041989,4]
[361842363,1747829394718,-500.0,0.00041989,5]
[361842364,1747829394746,-149752.134282,0.0004199,4]
[361842365,1747829394771,-65193.6496336,0.0004199,4]
[361842366,1747829394795,-500.0,0.00041991,5]
[361842367,1747829394821,-2189.20199258,0.00041991,15]
[361842368,1747829394846,-120718.9978766,0.00041992,2]
[361842369,1747829394871,-13687.4770227,0.00041992,2]
[361842370,1747829394898,-3603.9855021,0.00041992,2]
[361842371,1747829394924,-57268.0085002,0.00041992,2]
[361842372,1747829394948,-4333.5479414,0.00041992,2]
[361842373,1747829394974,-578.0,0.00041993,7]
[361842374,1747829395000,-231.165,0.00041999,2]
[361842375,1747829395027,-200.0,0.00041999,120]
[361842376,1747829395053,-207.4,0.00041999,120]
[361842377,1747829395077,-215.0738,0.00041999,120]
[361842378,1747829395102,-223.0315306,0.00041999,120]
[361842379,1747829395129,-231.28369723,0.00041999,120]
[361842380,1747829395155,-239.84119403,0.00041999,120]
[361842381,1747829395182,-248.71531821,0.00041999,120]
[361842382,1747829395208,-257.91778498,0.00041999,120]
[361842383,1747829395234,-267.46074303,0.00041999,120]
[361842384,1747829395260,-277.35679052,0.00041999,120]
[361842385,1747829395286,-287.61899177,0.00041999,120]
[361842386,1747829395313,-298.26089446,0.00041999,120]
[361842387,1747829395340,-309.29654756,0.00041999,120]
[361842388,1747829395368,-189.84598958,0.00041999,120]
[361842389,1747829395393,-500.0,0.00041999,5]
[361842390,1747829395420,-504.77448776,0.00041999,5]
[361842391,1747829395446,-9939.85748143,0.00042,120]
[361842392,1747829395474,-10000.0,0.00042,120]
[361842393,1747829395500,-43257.16949791,0.00042,120]
[361842394,1747829395527,-1000.0,0.00042,120]
[361842395,1747829395553,-999.999999,0.00042,120]
[361842396,1747829395577,-717.49104897,0.00042,30]
[361842397,1747829395603,-877.54582956,0.00042,2]
[361842398,1747829395632,-900.0,0.00042,43]
[361842399,1747829395658,-542.71,0.00042,120]
[361842400,1747829395685,-10000.0,0.00042,120]
[361842401,1747829395710,-123674.55286958,0.00042,120]
[361842402,1747829395735,-5307.4610338,0.00042,11]
[361842403,1747829395761,-152.0,0.00042,30]
[361842404,1747829395787,-154989.14623186,0.00042,120]
[361842405,1747829395813,-10000.0,0.00042,30]
[361842406,1747829395837,-69920.5614277,0.00042,30]
[361842407,1747829395862,-5030.78056947,0.00042,60]
[361842408,1747829395887,-1978.29875261,0.00042,30]
[361842409,1747829395915,-331940.54,0.00042,47]
[361842410,1747829395940,-10128.12351436,0.00042,120]
[361842411,1747829395965,-360.2,0.00042,30]
[361842413,1747829395991,-220.0,0.00042,120]
[361842414,1747829396016,-100000.0,0.00042,15]
[361842415,1747829396042,-160.0,0.00042,14]
[361842416,1747829396066,-154.0,0.00042,14]
[361842417,1747829396091,-264.61726528,0.00042,14]
[361842418,1747829396116,-1188.0,0.00042,14]
[361842419,1747829396143,-1188.0,0.00042,14]
[361842420,1747829396169,-1188.0,0.00042,14]
[361842421,1747829396195,-1188.0,0.00042,14]
[361842422,1747829396222,-1188.0,0.00042,14]
[361842423,1747829396249,-1188.0,0.00042,14]
[361842424,1747829396276,-1097.07,0.00042,14]
[361842425,1747829396302,-500.0,0.00042,90]
[361842426,1747829396328,-166.14721119,0.00042,30]
[361842427,1747829396354,-207.07570356,0.00042,30]
[361842428,1747829396380,-150.0,0.00042,30]
[361842429,1747829396405,-1340.67507525,0.0004201,2]
[361842430,1747829396431,-161.0,0.00042015,120]
[361842431,1747829396456,-771.0,0.00042015,120]
[361842432,1747829396485,-563.0,0.00042015,120]
[361842433,1747829396510,-1262.0,0.00042015,120]
[361842434,1747829396537,-336.0,0.00042015,120]
[361842435,1747829396563,-2189.20199258,0.00042017,15]
[361842436,1747829396588,-208371.68023133,0.00042018,30]
[361842437,1747829396612,-150.0,0.00042021,14]
[361842438,1747829396636,-771.0,0.00042025,120]
[361842439,1747829396780,-161.0,0.00042025,120]
[361842440,1747829396809,-563.0,0.00042025,120]
[361842441,1747829396836,-1262.0,0.00042025,120]
[361842442,1747829396863,-150.5,0.00042025,120]
[361842443,1747829396890,-336.0,0.00042025,120]
[361842444,1747829396917,-192.92,0.00042035,2]
[361842445,1747829396946,-192.92,0.00042035,2]
[361842446,1747829396972,-192.92,0.00042035,2]
[361842447,1747829396999,-192.92,0.00042035,2]
[361842448,1747829397025,-192.92,0.00042035,2]
[361842449,1747829397052,-192.92,0.00042035,2]
[361842450,1747829397080,-192.92,0.00042035,2]
[361842451,1747829397105,-192.92,0.00042035,2]
[361842452,1747829397130,-192.92,0.00042035,2]
[361842453,1747829397155,-192.92,0.00042035,2]
[361842454,1747829397181,-192.92,0.00042035,2]
[361842455,1747829397209,-192.92,0.00042035,2]
[361842456,1747829397236,-192.92,0.00042035,2]
[361842457,1747829397264,-192.92,0.00042035,2]
[361842458,1747829397292,-192.92,0.00042035,2]
[361842459,1747829397317,-192.92,0.00042035,2]
[361842460,1747829397345,-192.92,0.00042035,2]
[361842461,1747829397372,-192.92,0.00042035,2]
[361842462,1747829397398,-192.92,0.00042035,2]
[361842463,1747829397424,-192.92,0.00042035,2]
[361842464,1747829397449,-192.92,0.00042035,2]
[361842465,1747829397477,-192.92,0.00042035,2]
[361842466,1747829397506,-192.92,0.00042035,2]
[361842467,1747829397531,-192.92,0.00042035,2]
[361842468,1747829397557,-192.92,0.00042035,2]
[361842469,1747829397583,-192.92,0.00042035,2]
[361842470,1747829397608,-192.92,0.00042035,2]
[361842471,1747829397634,-192.92,0.00042035,2]
[361842472,1747829397661,-192.92,0.00042035,2]
[361842473,1747829397692,-192.92,0.00042035,2]
[361842474,1747829397717,-192.92,0.00042035,2]
[361842475,1747829397744,-192.92,0.00042035,2]
[361842476,1747829397769,-192.92,0.00042035,2]
[361842477,1747829397795,-192.92,0.00042035,2]
[361842478,1747829397820,-192.92,0.00042035,2]
[361842479,1747829397847,-192.92,0.00042035,2]
[361842480,1747829397874,-192.92,0.00042035,2]
[361842481,1747829397900,-192.92,0.00042035,2]
[361842482,1747829397928,-192.92,0.00042035,2]
[361842483,1747829397954,-192.92,0.00042035,2]
[361842484,1747829397980,-192.92,0.00042035,2]
[361842485,1747829398008,-192.92,0.00042035,2]
[361842486,1747829398035,-192.92,0.00042035,2]
[361842487,1747829398063,-192.92,0.00042035,2]
[361842488,1747829398089,-771.0,0.00042035,120]
[361842489,1747829398115,-161.0,0.00042035,120]
[361842490,1747829398139,-563.0,0.00042035,120]
[361842491,1747829398166,-1262.0,0.00042035,120]
[361842492,1747829398193,-150.5,0.00042035,120]
[361842493,1747829398220,-336.0,0.00042035,120]
[361842494,1747829398248,-2189.20199258,0.00042042,15]
[361842495,1747829398276,-382451.61290022,0.00042045,2]
[361842496,1747829398302,-232.88755505,0.00042045,2]
[361842497,1747829398327,-1562310.30015506,0.00042045,120]
[361842498,1747829398352,-150.0,0.00042053,14]
[361842499,1747829398378,-246.71847522,0.00042058,14]
[361842500,1747829398405,-150.0,0.0004206,14]
[361842501,1747829398433,-150.0,0.00042074,120]
[361842503,1747829398458,-754.7190309,0.00042086,2]
[361842504,1747829398488,-150.0,0.00042088,2]
[361842505,1747829398515,-582.0,0.000421,3]
[361842506,1747829398541,-5498.87,0.000421,14]
[361842507,1747829398567,-151.32,0.000421,14]
[361842508,1747829398594,-150.0,0.00042106,2]
[361842509,1747829398618,-10458.68809066,0.00042108,2]
[361842510,1747829398645,-192.92,0.00042108,2]
[361842511,1747829398671,-150.0,0.00042153,120]
[361842512,1747829398697,-192.92,0.0004217,2]
[361842513,1747829398722,-192.92,0.0004217,2]
[361842514,1747829398748,-192.92,0.0004217,2]
[361842515,1747829398774,-192.92,0.0004217,2]
[361842516,1747829398798,-192.92,0.0004217,2]
[361842517,1747829398823,-192.92,0.0004217,2]
[361842518,1747829398849,-192.92,0.0004217,2]
[361842519,1747829398873,-192.92,0.0004217,2]
[361842520,1747829398898,-192.92,0.0004217,2]
[361842521,1747829398922,-200.0,0.00042173,10]
[361842522,1747829398948,-433837.28,0.0004218,120]
[361842523,1747829398974,-150.0,0.00042186,2]
[361842524,1747829399001,-3600.0,0.000422,2]
[361842525,1747829399025,-150.0,0.00042201,14]
[361842526,1747829399050,-150.0,0.00042202,14]
[361842527,1747829399076,-311.26,0.00042204,120]
[361842528,1747829399103,-150.0,0.00042204,2]
[361842529,1747829399128,-1005.78835005,0.00042207,120]
[361842530,1747829399153,-192.92,0.00042208,2]
[361842531,1747829399390,-192.92,0.00042208,2]
[361842532,1747829399416,-192.92,0.00042208,2]
[361842533,1747829399442,-192.92,0.00042208,2]
[361842534,1747829399470,-192.92,0.00042208,2]
[361842535,1747829399495,-192.92,0.00042208,2]
[361842536,1747829399522,-192.92,0.00042208,2]
[361842537,1747829399548,-192.92,0.00042208,2]
[361842538,1747829399573,-192.92,0.00042208,2]
[361842539,1747829399599,-192.92,0.00042208,2]
[361842540,1747829399623,-192.92,0.00042208,2]
[361842541,1747829399650,-192.92,0.00042208,2]
[361842542,1747829399675,-192.92,0.00042208,2]
[361842543,1747829399699,-192.92,0.00042208,2]
[361842544,1747829399724,-192.92,0.00042208,2]
[361842545,1747829399748,-192.92,0.00042208,2]
[361842546,1747829399773,-192.92,0.00042208,2]
[361842547,1747829399798,-192.92,0.00042208,2]
[361842548,1747829399823,-192.92,0.00042208,2]
[361842549,1747829399849,-192.92,0.00042208,2]
[361842550,1747829399874,-192.92,0.00042208,2]
[361842551,1747829399900,-192.92,0.00042208,2]
[361842552,1747829399926,-192.92,0.00042208,2]
[361842553,1747829399951,-192.92,0.00042208,2]
[361842554,1747829399976,-192.92,0.00042208,2]
[361842555,1747829400001,-192.92,0.00042208,2]
[361842556,1747829400026,-192.92,0.00042208,2]
[361842557,1747829400052,-192.92,0.00042208,2]
[361842558,1747829400078,-192.92,0.00042208,2]
[361842559,1747829400105,-150.0,0.0004221,2]
[361842560,1747829400131,-151.0,0.00042218,14]
[361842561,1747829400157,-151.0,0.00042218,14]
[361842562,1747829400182,-151.0,0.00042218,14]
[361842563,1747829400208,-151.0,0.00042218,14]
[361842564,1747829400234,-151.0,0.00042218,14]
[361842565,1747829400260,-151.0,0.00042218,14]
[361842566,1747829400286,-151.0,0.00042218,14]
[361842567,1747829400311,-151.0,0.00042218,14]
[361842568,1747829400336,-151.0,0.00042218,14]
[361842569,1747829400361,-151.0,0.00042218,14]
[361842570,1747829400385,-151.0,0.00042218,14]
[361842571,1747829400410,-151.0,0.00042218,14]
[361842572,1747829400434,-151.0,0.00042218,14]
[361842573,1747829400459,-151.0,0.00042218,14]
[361842574,1747829400486,-151.0,0.00042218,14]
[361842575,1747829400513,-151.0,0.00042218,14]
[361842576,1747829400540,-151.0,0.00042218,14]
[361842577,1747829400565,-151.0,0.00042218,14]
[361842578,1747829400590,-151.0,0.00042218,14]
[361842579,1747829400615,-151.0,0.00042218,14]
[361842580,1747829400640,-151.973778,0.00042218,14]
[361842581,1747829400665,-192.361055,0.00042218,14]
[361842582,1747829400690,-151.230817,0.00042218,14]
[361842583,1747829400715,-151.0,0.00042218,14]
[361842584,1747829400739,-151.0,0.00042218,14]
[361842585,1747829400765,-151.0,0.00042218,14]
[361842586,1747829400790,-151.213998,0.00042218,14]
[361842587,1747829400814,-151.0,0.00042218,14]
[361842588,1747829400838,-151.0,0.00042218,14]
[361842589,1747829400863,-151.0,0.00042218,14]
[361842590,1747829400894,-151.0,0.00042218,14]
[361842591,1747829400921,-750.756996,0.00042218,14]
[361842592,1747829400947,-750.756996,0.00042218,14]
[361842593,1747829400973,-151.0,0.00042218,14]
[361842594,1747829400997,-151.0,0.00042218,14]
[361842595,1747829401022,-151.0,0.00042218,14]
[361842596,1747829401047,-151.0,0.00042218,14]
[361842597,1747829401072,-151.0,0.00042218,14]
[361842598,1747829401097,-151.0,0.00042218,14]
[361842599,1747829401124,-151.0,0.00042218,14]
[361842600,1747829401149,-300.726802,0.00042218,14]
[361842601,1747829401174,-300.726802,0.00042218,14]
[361842602,1747829401199,-151.0,0.00042218,14]
[361842603,1747829401223,-183.974592,0.00042218,14]
[361842604,1747829401250,-151.0,0.00042218,14]
[361842605,1747829401273,-151.0,0.00042218,14]
[361842606,1747829401298,-300.726802,0.00042218,14]
[361842607,1747829401323,-300.726802,0.00042218,14]
[361842608,1747829401347,-151.0,0.00042218,14]
[361842609,1747829401404,-151.0,0.00042218,14]
[361842610,1747829401429,-151.0,0.00042218,14]
[361842611,1747829401453,-151.0,0.00042218,14]
[361842612,1747829401481,-151.0,0.00042218,14]
[361842613,1747829401506,-296.731412,0.00042218,14]
[361842614,1747829401537,-151.0,0.00042218,14]
[361842615,1747829401564,-151.0,0.00042218,14]
[361842616,1747829401588,-151.0,0.00042218,14]
[361842617,1747829401613,-151.0,0.00042218,14]
[361842618,1747829401639,-151.0,0.00042218,14]
[361842619,1747829401665,-151.0,0.00042218,14]
[361842620,1747829401689,-151.0,0.00042218,14]
[361842621,1747829401712,-151.0,0.00042218,14]
[361842622,1747829401736,-151.0,0.00042218,14]
[361842623,1747829401761,-151.0,0.00042218,14]
[361842624,1747829401785,-151.0,0.00042218,14]
[361842625,1747829401810,-151.0,0.00042218,14]
[361842626,1747829401834,-151.0,0.00042218,14]
[361842627,1747829401858,-231.25879,0.00042218,14]
[361842628,1747829401881,-231.25879,0.00042218,14]
[361842629,1747829401905,-231.25879,0.00042218,14]
[361842630,1747829401929,-231.25879,0.00042218,14]
[361842631,1747829401953,-151.322324,0.00042218,14]
[361842632,1747829401979,-151.0,0.00042218,14]
[361842633,1747829402003,-151.0,0.00042218,14]
[361842634,1747829402028,-216.50257,0.00042218,14]
[361842635,1747829402052,-151.0,0.00042218,14]
[361842636,1747829402077,-151.0,0.00042218,14]
[361842637,1747829402103,-151.0,0.00042218,14]
[361842638,1747829402153,-151.0,0.00042221,14]
[361842639,1747829402178,-151.140362,0.00042221,14]
[361842640,1747829402202,-151.0,0.00042221,14]
[361842641,1747829402227,-151.0,0.00042221,14]
[361842642,1747829402253,-151.0,0.00042221,14]
[361842643,1747829402277,-151.0,0.00042221,14]
[361842644,1747829402302,-151.0,0.00042221,14]
[361842645,1747829402329,-151.0,0.00042221,14]
[361842646,1747829402354,-151.0,0.00042221,14]
[361842647,1747829402379,-151.0,0.00042221,14]
[361842648,1747829402404,-151.0,0.00042221,14]
[361842649,1747829402429,-151.0,0.00042221,14]
[361842650,1747829402454,-165.169,0.00042221,14]
[361842651,1747829402482,-165.169,0.00042221,14]
[361842652,1747829402511,-165.169,0.00042221,14]
[361842653,1747829402536,-165.169,0.00042221,14]
[361842654,1747829402563,-49619.89605186,0.00042221,30]
[361842655,1747829402587,-150.0,0.00042228,30]
[361842656,1747829402614,-1000.0,0.00042259,2]
[361842657,1747829402640,-150.0,0.00042274,14]
[361842658,1747829402664,-10000.0,0.000423,50]
[361842659,1747829402688,-1757.73027933,0.000423,30]
[361842660,1747829402714,-1000.0,0.00042329,14]
[361842661,1747829402739,-13936.0,0.0004233,120]
[361842662,1747829402764,-150.0,0.00042342,14]
[361842663,1747829402791,-150.0,0.00042365,2]
[361842664,1747829402817,-150.0,0.00042379,120]
[361842665,1747829402842,-150.0,0.00042385,2]
[361842666,1747829402867,-374.51504647,0.000424,120]
[361842667,1747829402893,-32994.29,0.000424,14]
[361842668,1747829402919,-5000.0,0.000424,120]
[361842669,1747829402944,-3205.01554442,0.000424,120]
[361842670,1747829402968,-790.0,0.000424,120]
[361842671,1747829402994,-10000.00000099,0.000424,30]
[361842672,1747829403028,-150.0,0.00042449,2]
[361842673,1747829403055,-150.0,0.00042454,14]
[361842674,1747829403082,-150.0,0.00042456,30]
[361842675,1747829403109,-2468.0,0.00042465,120]
[361842676,1747829403136,-2468.0,0.00042465,120]
[361842677,1747829403162,-2468.0,0.00042465,120]
[361842678,1747829403202,-2468.0,0.00042465,120]
[361842679,1747829403233,-2468.0,0.00042465,120]
[361842680,1747829403264,-2468.0,0.00042465,120]
[361842681,1747829403291,-2468.0,0.00042465,120]
[361842682,1747829403319,-2468.0,0.00042465,120]
[361842683,1747829403349,-2468.0,0.00042465,120]
[361842684,1747829403376,-2468.0,0.00042465,120]
[361842685,1747829403404,-2468.0,0.00042465,120]
[361842686,1747829403432,-2468.0,0.00042465,120]
[361842687,1747829403460,-2468.0,0.00042465,120]
[361842688,1747829403489,-2468.0,0.00042465,120]